bitfinex/quotes_ETHUSD_20250331
["timestamp","ask_amount","ask_price","bid_price","bid_amount"]
[1743423451156,8.5127,1814.0,1813.6,1.02376877]
[1743423451356,5.5127,1814.0,1813.6,1.02376877]
[1743423451555,3.0,1813.9,1813.6,1.02376877]
[1743423452169,8.51309,1813.9,1813.6,1.02376877]
[1743423452546,3.0,1813.9,1813.6,1.02376877]
[1743423452950,8.51301,1813.9,1813.6,1.02376877]
[1743423453767,9.915585,1813.9,1813.6,1.02376877]
[1743423453975,8.51301,1813.9,1813.6,6.48776877]
[1743423455159,5.51343,1813.8,1813.6,0.19976877]
[1743423455536,11.02688,1813.8,1813.6,0.19976877]
[1743423455892,5.51359,1813.7,1813.6,0.19976877]
[1743423456476,5.51359,1813.7,1813.4,16.4727]
[1743423456682,8.51359,1813.7,1813.6,0.20084427]
[1743423456933,5.51437,1813.5,1813.3,5.464]
[1743423457238,5.51483,1813.3,1813.1,0.1]
[1743423457456,5.51483,1813.3,1813.1,5.564]
[1743423458141,5.5145,1813.4,1813.1,5.564]
[1743423458342,5.5149,1813.3,1813.1,5.564]
[1743423458676,6.617376,1813.4,1813.1,5.564]
[1743423458883,12.132096,1813.4,1813.1,5.564]
[1743423459387,5.51488,1813.3,1813.1,5.564]
[1743423460037,6.617436,1813.4,1813.1,5.564]
[1743423460233,4.102876,1813.4,1813.1,5.564]
[1743423460544,9.617496,1813.4,1813.1,5.564]
[1743423460953,8.51462,1813.4,1813.1,5.564]
[1743423461141,3.0,1813.6,1813.2,0.80924904]
[1743423461454,0.768,1813.9,1813.2,6.26911]
[1743423461673,6.28103,1813.9,1813.2,16.45911]
[1743423461858,8.51339,1813.8,1813.2,16.45911]
[1743423462056,5.51366,1813.7,1813.2,13.697948]
[1743423462257,11.02745,1813.7,1813.2,13.697948]
[1743423462462,5.51429,1813.5,1813.2,16.4091]
[1743423462641,5.51429,1813.5,1813.2,6.2191]
[1743423462843,5.51452,1813.4,1813.2,6.2191]
[1743423463157,5.51452,1813.4,1813.2,5.465]
[1743423463477,5.51452,1813.4,1813.1,6.354]
[1743423463800,5.51452,1813.4,1813.2,0.18276572]
[1743423463937,11.02868,1813.5,1813.2,0.18276572]
[1743423464144,5.51455,1813.4,1813.1,6.354]
[1743423464381,5.51455,1813.4,1813.2,0.18276572]
[1743423464585,5.5148,1813.3,1813.2,0.18276572]
[1743423464738,5.5148,1813.3,1813.1,0.1]
[1743423464739,11.02987,1813.3,1813.1,0.1]
[1743423464944,11.02987,1813.3,1813.2,0.18276572]
[1743423465160,13.30914383,1813.3,1813.1,0.1]
[1743423465396,7.79407383,1813.3,1813.2,0.18276572]
[1743423465782,7.79407383,1813.3,1813.1,0.1]
[1743423466001,13.30911383,1813.3,1813.2,0.18276572]
[1743423466205,1.46217383,1813.3,1813.2,0.18276572]
[1743423466409,5.51511,1813.2,1813.1,0.1]
[1743423466711,7.06433138,1813.2,1813.1,0.1]
[1743423467093,10.82453138,1813.2,1813.1,0.1]
[1743423467669,3.0,1813.2,1813.1,0.1]
[1743423468283,11.6691231,1813.2,1813.1,0.1]
[1743423468707,8.51511,1813.2,1813.1,0.1]
[1743423469008,3.0,1813.2,1813.1,0.1]
[1743423469312,8.51511,1813.2,1813.1,0.1]
[1743423470313,3.0,1813.2,1813.1,0.1]
[1743423472473,3.9446131,1813.5,1813.1,0.1]
[1743423472673,3.0,1813.4,1813.1,0.1]
[1743423473576,6.1540131,1813.4,1813.1,0.1]
[1743423474978,3.0,1813.4,1813.1,0.1]
[1743423475201,3.0,1813.4,1813.2,5.52014879]
[1743423475399,3.0,1813.6,1813.3,0.7946]
[1743423475693,12.83468941,1813.6,1813.3,0.7946]
[1743423476501,7.32078941,1813.6,1813.3,0.7946]
[1743423476922,18.34884941,1813.6,1813.3,0.7946]
[1743423477123,12.83479941,1813.6,1813.3,0.7946]
[1743423477293,3.0,1813.4,1813.2,5.465]
[1743423477907,7.32078941,1813.6,1813.2,5.465]
[1743423478105,6.1540131,1813.6,1813.2,5.465]
[1743423478853,6.1540131,1813.6,1813.3,0.18608117]
[1743423480817,11.6685131,1813.4,1813.3,0.18608117]
[1743423481034,6.1540131,1813.4,1813.3,0.18608117]
[1743423481241,3.0,1813.4,1813.2,5.464]
[1743423481443,3.0,1813.4,1813.3,0.18525325]
[1743423482147,3.1540131,1813.7,1813.4,0.7677]
[1743423482355,0.7957,1813.8,1813.5,0.18509564]
[1743423482644,3.1540131,1814.0,1813.6,0.8126]
[1743423482823,3.0,1813.9,1813.6,0.8126]
[1743423483022,3.0,1813.9,1813.7,0.18406872]
[1743423485524,0.2731269,1814.3,1813.7,0.18406872]
[1743423485525,0.7665,1814.3,1813.7,0.18406872]
[1743423485722,3.1540131,1814.4,1814.0,5.51256]
[1743423486033,9.4328931,1814.1,1813.9,5.464]
[1743423486352,3.1540131,1814.1,1813.9,5.464]
[1743423486747,3.1540131,1814.2,1813.9,5.464]
[1743423486931,3.1540131,1814.1,1813.9,5.464]
[1743423487132,3.1540131,1814.0,1813.8,10.19]
[1743423487339,3.1540131,1813.9,1813.8,5.464]
[1743423487537,9.4577631,1814.0,1813.8,5.464]
[1743423487735,0.7909,1814.0,1813.8,5.464]
[1743423487923,11.6664231,1814.1,1813.8,5.464]
[1743423488117,1.16664231,1814.0,1813.8,5.464]
[1743423488331,4.32065541,1814.0,1813.8,5.464]
[1743423488530,9.83334541,1814.0,1813.8,5.464]
[1743423488734,3.1540131,1813.9,1813.8,5.464]
[1743423489654,4.32065541,1814.0,1813.8,5.464]
[1743423490719,1.24916554,1813.9,1813.4,6.3429]
[1743423490925,3.58607864,1813.9,1813.4,11.80587]
[1743423491445,9.09906864,1813.9,1813.4,6.34287]
[1743423491639,9.09906864,1813.9,1813.5,5.463]
[1743423491950,3.1540131,1813.7,1813.5,5.463]
[1743423492150,3.1540131,1813.6,1813.3,5.463]
[1743423493823,3.1540131,1813.6,1813.4,0.18178053]
[1743423494257,3.1540131,1813.6,1813.3,5.463]
[1743423494455,3.1540131,1813.6,1813.5,0.18170173]
[1743423494958,3.1540131,1813.6,1813.3,5.463]
[1743423495159,3.1540131,1813.6,1813.4,0.18178053]
[1743423495338,3.1540131,1813.6,1813.3,5.463]
[1743423495540,3.1540131,1813.6,1813.4,0.18178053]
[1743423495768,3.1540131,1813.6,1813.3,5.463]
[1743423495962,3.1540131,1813.6,1813.4,0.18178053]
[1743423496132,4.02078741,1813.6,1813.4,0.18178053]
[1743423496333,4.02078741,1813.6,1813.3,5.463]
[1743423496533,4.02078741,1813.6,1813.4,0.18178053]
[1743423496768,4.02078741,1813.6,1813.3,5.462]
[1743423497065,3.1540131,1813.6,1813.4,0.18178053]
[1743423497366,3.1540131,1813.6,1813.3,5.462]
[1743423497526,3.0,1813.7,1813.4,0.18178053]
[1743423497730,6.1540131,1813.7,1813.3,10.97662]
[1743423497960,3.1540131,1813.7,1813.4,0.18178053]
[1743423498140,3.1540131,1814.0,1813.5,11.85676743]
[1743423498360,0.7869,1814.1,1813.6,0.18162294]
[1743423498530,3.0,1814.0,1813.7,5.462]
[1743423498733,6.1540131,1814.0,1813.8,0.18158954]
[1743423499129,3.1540131,1813.9,1813.8,0.18158954]
[1743423499833,9.83367141,1813.9,1813.8,0.18158954]
[1743423500461,4.32069141,1813.9,1813.8,0.18158954]
[1743423500673,3.1540131,1813.9,1813.8,0.18158954]
[1743423500886,8.6669931,1813.9,1813.8,0.18158954]
[1743423502001,8.6669931,1813.9,1813.6,5.462]
[1743423502201,5.51298,1813.9,1813.8,0.18158954]
[1743423502367,6.31208,1813.8,1813.7,0.18166831]
[1743423502570,10.96400041,1813.8,1813.7,0.18166831]
[1743423502885,11.02801,1813.6,1813.4,5.462]
[1743423503195,6.1540131,1813.5,1813.4,5.462]
[1743423503707,3.0,1813.5,1813.4,5.462]
[1743423504000,3.9528131,1813.8,1813.4,6.235]
[1743423504294,3.0,1813.7,1813.4,6.235]
[1743423504798,8.6679131,1813.6,1813.4,5.462]
[1743423504958,3.1540131,1813.6,1813.4,5.462]
[1743423505299,11.6678231,1813.7,1813.4,5.462]
[1743423506172,6.1540131,1813.7,1813.4,5.462]
[1743423506573,6.1540131,1813.7,1813.4,6.559668]
[1743423506784,6.1540131,1813.7,1813.4,5.462]
[1743423508795,11.6677331,1813.7,1813.5,0.18335709]
[1743423509162,17.1814831,1813.7,1813.5,0.18335709]
[1743423509513,3.0,1813.6,1813.5,0.18335709]
[1743423509798,8.51389,1813.6,1813.5,0.18335709]
[1743423510006,14.16246541,1813.6,1813.5,0.18335709]
[1743423510297,5.51474,1813.4,1813.2,31.816]
[1743423510486,3.9741131,1813.3,1813.2,31.816]
[1743423511274,5.51474,1813.4,1813.2,31.816]
[1743423511476,3.1540131,1813.3,1813.2,31.816]
[1743423512019,8.6688131,1813.3,1813.2,31.816]
[1743423512977,6.29781,1813.2,1813.1,0.1]
[1743423513210,9.4518231,1813.2,1813.1,0.1]
[1743423513502,12.4518231,1813.2,1813.1,0.1]
[1743423514020,27.2636392,1813.2,1813.1,0.1]
[1743423514188,20.2944932,1813.2,1813.1,0.1]
[1743423514387,18.91970025,1813.2,1813.1,0.1]
[1743423515300,15.76568715,1813.2,1813.1,0.1]
[1743423515688,18.91970025,1813.2,1813.1,0.1]
[1743423516673,49.61817625,1813.2,1813.1,0.1]
[1743423516878,27.92932425,1813.2,1813.1,0.1]
[1743423517111,23.12435725,1813.2,1813.1,0.1]
[1743423520286,18.91970025,1813.2,1813.1,1e-05]
[1743423520490,33.47339625,1813.2,1813.1,1e-05]
[1743423521003,27.40165625,1813.2,1813.1,1e-05]
[1743423522426,5.51724,1812.5,1812.3,0.7865]
[1743423522588,8.6715531,1812.4,1812.3,0.7865]
[1743423522791,8.6715531,1812.4,1812.3,0.9607452]
[1743423522994,8.6715531,1812.4,1812.3,0.1742452]
[1743423523198,5.51815,1812.2,1812.1,0.1]
[1743423523375,9.33388,1812.3,1812.1,1.10460301]
[1743423523376,9.38513531,1812.3,1812.1,1.10460301]
[1743423523692,3.1540131,1812.2,1812.1,1.10460301]
[1743423524073,3.1540131,1812.3,1812.1,1.10460301]
[1743423524278,3.0,1812.4,1812.1,1.10460301]
[1743423524279,11.6715731,1812.4,1812.1,1.10460301]
[1743423524573,3.0,1812.4,1812.1,1.10460301]
[1743423524778,3.1540131,1812.3,1812.1,1.10460301]
[1743423526035,3.1540131,1812.4,1812.1,1.10460301]
[1743423526335,0.41471119,1812.9,1812.1,11.12673331]
[1743423526541,3.1540131,1813.0,1812.6,6.34873]
[1743423526737,3.1540131,1813.0,1812.7,5.464]
[1743423526941,3.1540131,1812.9,1812.7,5.64268436]
[1743423529238,3.1540131,1812.9,1812.7,5.69784544]
[1743423529433,3.1540131,1812.9,1812.7,5.64268436]
[1743423529742,3.1540131,1812.9,1812.7,5.69784485]
[1743423529944,3.1540131,1812.9,1812.7,5.64268436]
[1743423530540,3.1540131,1812.8,1812.7,5.64268436]
[1743423531927,3.1540131,1812.8,1812.7,0.17868436]
[1743423532111,3.1540131,1812.8,1812.7,5.463]
[1743423532518,3.1540131,1812.8,1812.7,5.64065037]
[1743423533541,3.1540131,1812.9,1812.7,5.64065037]
[1743423537625,3.1540131,1813.2,1812.9,5.51579]
[1743423537825,3.1540131,1813.2,1813.0,0.17741382]
[1743423538055,3.0,1813.3,1812.8,6.29937]
[1743423538056,11.6688631,1813.3,1812.8,6.29937]
[1743423538258,3.1540131,1813.3,1813.1,0.1744408]
[1743423538436,3.1540131,1813.3,1812.8,6.29937]
[1743423538437,6.1540131,1813.3,1812.9,5.51593]
[1743423538638,6.1540131,1813.3,1813.0,0.17451963]
[1743423539269,3.0,1813.3,1813.0,0.17451963]
[1743423539477,3.1540131,1813.2,1813.0,0.17451963]
[1743423539648,3.1540131,1813.1,1813.0,5.63751963]
[1743423540173,3.1540131,1813.1,1813.0,0.17451963]
[1743423540380,10.36965141,1813.1,1813.0,0.17451963]
[1743423540671,10.36965141,1813.1,1812.8,5.462]
[1743423540961,3.1540131,1813.0,1812.8,5.462]
[1743423541132,8.6702731,1812.9,1812.4,0.8093]
[1743423541330,3.9527131,1812.8,1812.5,5.462]
[1743423541536,4.02104041,1812.9,1812.5,5.462]
[1743423541845,3.1540131,1812.9,1812.4,11.84416]
[1743423542063,8.6700731,1812.9,1812.5,5.462]
[1743423542364,8.6704031,1812.8,1812.6,5.462]
[1743423542766,3.1540131,1812.8,1812.6,5.462]
[1743423543466,6.32902,1813.0,1812.6,5.462]
[1743423543633,8.51541,1813.1,1812.7,0.85156458]
[1743423543834,11.6694231,1813.1,1812.7,0.85156458]
[1743423544453,6.1540131,1813.1,1812.7,0.85156458]
[1743423544659,3.9246131,1813.2,1812.8,5.51617]
[1743423544973,3.1540131,1813.1,1812.7,16.50297]
[1743423545144,3.1540131,1813.1,1812.8,1.650297]
[1743423546067,3.1540131,1813.0,1812.8,1.650297]
[1743423546245,3.1540131,1813.0,1812.7,10.9864]
[1743423546246,3.1540131,1812.9,1812.7,10.9864]
[1743423546454,3.1540131,1813.0,1812.7,10.9864]
[1743423546851,8.6697531,1813.0,1812.7,16.4484]
[1743423547039,3.9638131,1812.9,1812.7,15.652]
[1743423547243,3.1540131,1812.8,1812.5,0.7975]
[1743423547448,3.1540131,1812.7,1812.5,5.462]
[1743423547644,3.9638131,1812.9,1812.5,10.97914]
[1743423548436,8.51546,1813.1,1812.7,6.2803]
[1743423548437,3.7807,1813.1,1812.7,6.2803]
[1743423548636,3.7807,1813.1,1812.7,11.7969]
[1743423548841,3.7807,1813.1,1812.8,0.05516052]
[1743423549066,3.7807,1813.1,1812.8,5.51629]
[1743423549268,3.7807,1813.1,1812.8,0.68315501]
[1743423549269,0.7807,1813.1,1812.8,0.68315501]
[1743423549437,9.08831086,1813.2,1812.8,0.627999]
[1743423549639,0.28070259,1813.6,1813.2,5.51495]
[1743423549943,8.6680031,1813.6,1813.1,6.26998]
[1743423550143,3.0,1813.5,1813.2,5.462]
[1743423550547,3.0,1813.5,1813.2,12.701723]
[1743423551562,3.0,1813.5,1813.2,7.186723]
[1743423552155,3.0,1813.5,1813.2,5.462]
[1743423552357,3.0,1813.5,1813.2,10.97702]
[1743423552577,3.2540131,1813.7,1813.2,5.462]
[1743423552777,0.1,1813.7,1813.4,0.8143]
[1743423552991,0.1,1813.7,1813.4,6.38381007]
[1743423553160,0.1,1813.7,1813.4,7.57365608]
[1743423553570,0.1,1813.7,1813.5,0.17081939]
[1743423555188,8.6679031,1813.6,1813.5,5.63181939]
[1743423555567,5.6136,1813.7,1813.5,5.63181939]
[1743423555568,8.7676131,1813.7,1813.5,5.63181939]
[1743423555780,0.1,1813.7,1813.5,5.63181939]
[1743423558191,0.1,1813.7,1813.6,6.29509]
[1743423558594,0.1,1813.7,1813.6,6.46516965]
[1743423559896,0.1,1813.7,1813.6,0.95127965]
[1743423560267,0.1,1813.7,1813.6,6.46516965]
[1743423561465,0.1,1813.7,1813.6,6.52029743]
[1743423561662,0.1,1813.7,1813.6,19.53516539]
[1743423564269,0.1,1813.7,1813.6,19.52876539]
[1743423566503,0.1,1813.7,1813.6,20.63069193]
[1743423566904,0.1,1813.7,1813.6,26.08969193]
[1743423571395,0.1,1813.7,1813.6,26.08869193]
[1743423572407,0.1,1813.7,1813.6,17.75069619]
[1743423572600,0.1,1813.7,1813.6,23.20869619]
[1743423574385,0.1,1813.7,1813.6,17.75069619]
[1743423574608,0.1,1813.7,1813.6,23.20869619]
[1743423576923,0.1,1813.7,1813.6,22.43389619]
[1743423579706,0.1,1813.7,1813.6,22.56983236]
[1743423579897,0.1,1813.7,1813.6,22.43289619]
[1743423583817,0.1,1813.7,1813.6,36.93289619]
[1743423585516,0.1,1813.7,1813.6,22.43289619]
[1743423586096,0.8999,1813.7,1813.6,0.17007965]
[1743423586319,10.52423841,1813.7,1813.6,0.17007965]
[1743423586616,5.01064841,1813.7,1813.4,5.457]
[1743423586820,1.85663531,1813.7,1813.4,10.97143]
[1743423587119,0.8999,1813.7,1813.5,5.67969872]
[1743423587433,0.8999,1813.7,1813.5,0.16573872]
[1743423587735,0.1,1813.7,1813.6,5.51389]
[1743423587891,0.1,1813.7,1813.5,5.67979872]
[1743423588223,0.1,1813.7,1813.6,5.51389]
[1743423588597,0.1,1813.7,1813.6,5.6819039]
[1743423589418,0.1,1813.7,1813.6,5.73703545]
[1743423589621,0.1,1813.7,1813.6,5.6819039]
[1743423591325,0.1,1813.7,1813.6,7.82050029]
[1743423593925,0.1,1813.7,1813.6,8.98420732]
[1743423594228,0.8838,1813.7,1813.6,6.73359106]
[1743423595130,0.8838,1813.7,1813.6,12.24748106]
[1743423595337,0.1,1813.7,1813.6,12.24748106]
[1743423599042,0.1,1813.7,1813.6,23.21748106]
[1743423599239,0.1,1813.7,1813.6,26.09063417]
[1743423599953,0.1,1813.7,1813.6,25.31063417]
[1743423601150,0.8697,1813.7,1813.6,0.1680139]
[1743423602458,0.1,1813.7,1813.6,5.6819039]
[1743423602628,0.1,1813.7,1813.6,5.73703327]
[1743423603036,0.1,1813.7,1813.6,5.6819039]
[1743423603428,0.1,1813.7,1813.6,15.92703007]
[1743423603639,0.1,1813.7,1813.6,19.31542491]
[1743423605631,0.774,1814.3,1814.2,5.51187]
[1743423605836,0.774,1814.3,1814.1,10.96824]
[1743423606060,0.774,1814.3,1814.2,0.16555912]
[1743423606866,0.774,1814.3,1814.2,5.456]
[1743423607073,0.774,1814.3,1814.2,5.62155912]
[1743423608066,0.774,1814.3,1814.2,11.13362912]
[1743423608655,0.774,1814.3,1814.2,5.62155912]
[1743423609565,0.774,1814.3,1814.2,11.13362912]
[1743423610141,3.7625,1814.5,1814.3,5.51173]
[1743423610349,3.7625,1814.5,1814.3,11.02346]
[1743423610556,0.8097,1814.6,1814.4,5.67636626]
[1743423610874,0.1,1814.9,1814.6,5.51075]
[1743423611063,0.7623,1814.8,1814.6,10.96575]
[1743423611377,0.7623,1814.8,1814.7,0.16442248]
[1743423611742,0.7623,1814.8,1814.7,5.67497248]
[1743423612072,0.1,1814.9,1814.8,5.51024]
[1743423612251,0.1,1814.9,1814.7,5.67497248]
[1743423612252,0.1,1814.9,1814.7,11.18542248]
[1743423612454,0.1,1814.9,1814.8,0.1636834]
[1743423613977,0.1,1814.9,1814.8,5.6739234]
[1743423614551,0.1,1814.9,1814.8,5.72901988]
[1743423614750,0.1,1814.9,1814.8,5.6739234]
[1743423614952,0.1,1814.9,1814.8,0.1636834]
[1743423615152,3.2540131,1814.9,1814.8,5.6176834]
[1743423615478,0.1,1814.9,1814.8,5.6176834]
[1743423615862,0.1,1814.9,1814.8,11.1279234]
[1743423616348,0.1,1814.9,1814.8,12.79175474]
[1743423617389,0.1,1814.9,1814.8,11.1279234]
[1743423620287,0.1,1814.9,1814.8,22.0862234]
[1743423627087,0.1,1814.9,1814.8,22.0832234]
[1743423631712,0.1,1814.9,1814.8,36.5832234]
[1743423633576,0.1,1814.9,1814.8,37.1332234]
[1743423633904,0.1,1814.9,1814.8,42.05399568]
[1743423634880,1e-05,1814.9,1814.8,45.05399568]
[1743423641328,1e-05,1814.9,1814.8,35.28469568]
[1743423641494,1e-05,1814.9,1814.8,26.23369568]
[1743423641917,1e-05,1814.9,1814.8,40.73369568]
[1743423643928,1e-05,1814.9,1814.8,40.73269568]
[1743423650695,1e-05,1814.9,1814.8,41.51699568]
[1743423652124,1e-05,1814.9,1814.8,40.73269568]
[1743423652836,0.75721,1814.9,1814.8,19.58445568]
[1743423653009,0.75721,1814.9,1814.8,0.1636834]
[1743423653404,0.75721,1814.9,1814.8,5.6116834]
[1743423654732,6.26715,1814.9,1814.8,5.6116834]
[1743423654933,6.26715,1814.9,1814.8,0.1636834]
[1743423655528,0.75721,1814.9,1814.8,0.1636834]
[1743423659014,3.9112231,1814.9,1814.8,0.1636834]
[1743423661624,13.36326341,1814.9,1814.8,0.1636834]
[1743423661839,13.36326341,1814.9,1814.8,0.12197704]
[1743423662165,0.7649,1814.6,1814.3,10.95975]
[1743423662349,3.1540131,1814.5,1814.4,0.12229184]
[1743423662556,0.7649,1814.6,1814.5,5.51116]
[1743423662733,1e-05,1814.9,1814.8,5.51024]
[1743423662953,1e-05,1814.9,1814.8,11.08021704]
[1743423663573,1e-05,1814.9,1814.8,35.77021704]
[1743423663956,1e-05,1814.9,1814.8,36.59961704]
[1743423665840,1e-05,1814.9,1814.8,37.14961704]
[1743423666040,1e-05,1814.9,1814.8,41.41561974]
[1743423669847,1e-05,1814.9,1814.8,42.50005417]
[1743423672863,1e-05,1814.9,1814.8,41.11965417]
[1743423673064,1e-05,1814.9,1814.8,58.40065417]
[1743423673446,1e-05,1814.9,1814.8,72.90065417]
[1743423673640,1e-05,1814.9,1814.8,73.69945417]
[1743423674681,1e-05,1814.9,1814.8,74.24945417]
[1743423679784,1e-05,1814.9,1814.8,64.05945417]
[1743423680078,1e-05,1814.9,1814.8,64.05845417]
[1743423686286,1e-05,1814.9,1814.8,67.05845417]
[1743423688891,1e-05,1814.9,1814.8,67.05745417]
[1743423690184,0.9245,1815.9,1814.8,65.97301974]
[1743423690363,0.9245,1815.9,1815.8,5.50721]
[1743423690561,0.9245,1815.9,1815.8,11.06434454]
[1743423698795,0.1,1815.9,1815.8,11.06434454]
[1743423699398,0.1,1815.9,1815.8,12.17307783]
[1743423699578,0.1,1815.9,1815.8,13.27532683]
[1743423699774,0.1,1815.9,1815.8,14.07972683]
[1743423699981,1e-05,1815.9,1815.8,14.62972683]
[1743423702106,1e-05,1815.9,1815.8,29.12972683]
[1743423703504,1e-05,1815.9,1815.8,28.32232683]
[1743423703680,1e-05,1815.9,1815.8,13.27232683]
[1743423704084,1e-05,1815.9,1815.8,27.77232683]
[1743423705482,1e-05,1815.9,1815.8,28.32232683]
[1743423706014,1e-05,1815.9,1815.8,29.07752683]
[1743423707309,1e-05,1815.9,1815.8,32.07752683]
[1743423710687,1e-05,1816.5,1816.4,5.50539]
[1743423711012,1e-05,1816.5,1816.4,43.91268657]
[1743423711595,1e-05,1816.5,1816.4,58.41268657]
[1743423712202,1e-05,1816.5,1816.4,52.97368657]
[1743423712419,1e-05,1816.5,1816.4,51.87259157]
[1743423712596,1e-05,1816.5,1816.4,42.81159157]
[1743423716132,0.78221,1816.5,1816.4,42.81059157]
[1743423716427,0.78221,1816.5,1816.4,37.37259157]
[1743423716600,0.78221,1816.5,1816.4,42.81059157]
[1743423716796,4.32984541,1816.5,1816.4,31.86720157]
[1743423717013,4.32984541,1816.5,1816.4,37.30520157]
[1743423717300,1.17583231,1816.5,1816.4,37.30520157]
[1743423718426,0.78221,1816.5,1816.4,42.81059157]
[1743423718937,0.78221,1816.5,1816.4,37.30520157]
[1743423719652,0.78221,1816.5,1816.4,42.81059157]
[1743423720430,1e-05,1816.5,1816.4,42.81059157]
[1743423723730,0.77811,1816.5,1816.4,31.86720157]
[1743423723934,0.77811,1816.5,1816.4,37.30420157]
[1743423725536,0.77811,1816.5,1816.4,42.80959157]
[1743423725852,0.77811,1816.5,1816.4,37.30420157]
[1743423726650,0.77811,1816.5,1816.4,42.80959157]
[1743423728353,0.77811,1816.5,1816.4,37.30420157]
[1743423730157,0.77811,1816.5,1816.4,5.54420157]
[1743423730765,0.77811,1816.5,1816.4,11.04959157]
[1743423731331,0.77811,1816.5,1816.4,0.10720157]
[1743423731531,0.77811,1816.5,1816.4,5.54420157]
[1743423731850,0.77811,1816.5,1816.4,5.54403727]
[1743423732666,0.77811,1816.5,1816.4,11.04942727]
[1743423732879,1e-05,1816.5,1816.4,11.04942727]
[1743423733167,1e-05,1816.5,1816.4,13.255483]
[1743423733753,1e-05,1816.5,1816.4,2.313093]
[1743423733958,1e-05,1816.5,1816.4,5.54303727]
[1743423734159,0.81821,1816.5,1816.4,5.54303727]
[1743423734540,0.81821,1816.5,1816.4,0.10703727]
[1743423734873,3.9722231,1816.5,1816.4,5.436]
[1743423735039,3.9722231,1816.5,1816.4,5.54209319]
[1743423735240,0.81821,1816.5,1816.4,5.54209319]
[1743423736345,0.81821,1816.5,1816.4,0.10609319]
[1743423736548,4.36944541,1816.5,1816.4,0.10609319]
[1743423736756,0.7511,1816.4,1816.3,5.436]
[1743423736982,3.1540131,1816.4,1816.3,5.436]
[1743423737146,3.9051131,1816.4,1816.3,5.436]
[1743423737878,0.7511,1816.4,1816.1,5.50616]
[1743423738110,0.7511,1816.4,1816.2,10.9418]
[1743423738250,0.7511,1816.4,1816.2,5.436]
[1743423739092,0.8142,1816.3,1816.2,5.436]
[1743423740607,0.8142,1816.3,1816.0,37.192]
[1743423740608,6.33171,1816.2,1816.0,37.192]
[1743423740777,3.9797131,1816.1,1816.0,37.192]
[1743423741293,3.9797131,1816.1,1816.0,31.756]
[1743423741597,3.9797131,1816.1,1816.0,37.192]
[1743423741777,9.4860131,1816.1,1816.0,31.756]
[1743423742301,5.507,1815.9,1815.5,15.69796]
[1743423742594,3.9149131,1815.8,1815.6,5.436]
[1743423743171,0.7609,1815.8,1815.6,10.94366]
[1743423743342,0.7609,1815.8,1815.7,5.50751]
[1743423743547,0.7609,1815.8,1815.7,10.94351]
[1743423745864,0.7609,1815.8,1815.7,5.436]
[1743423746756,3.9149131,1815.8,1815.6,5.436]
[1743423747178,0.7609,1815.8,1815.6,10.99888733]
[1743423747496,3.9302131,1816.0,1815.7,6.60724873]
[1743423747652,3.9302131,1816.0,1815.7,5.56242944]
[1743423747852,3.9302131,1816.0,1815.8,5.50721]
[1743423748353,3.9302131,1816.0,1815.7,5.50736]
[1743423748649,0.7762,1816.0,1815.9,5.50691]
[1743423748961,3.7551,1816.2,1815.9,11.01382]
[1743423749162,6.9091131,1816.2,1816.0,5.436]
[1743423749365,3.7551,1816.2,1816.0,10.9426]
[1743423749569,3.1540131,1816.1,1816.0,5.436]
[1743423749776,0.7999,1816.0,1815.9,5.436]
[1743423750800,3.9539131,1816.0,1815.9,5.436]
[1743423751810,0.7999,1816.0,1815.9,5.436]
[1743423752100,3.9566131,1816.3,1816.0,5.50636]
[1743423752301,5.20282241,1816.3,1815.9,5.436]
[1743423752475,3.0,1816.2,1816.0,5.5064]
[1743423753101,3.8026,1816.3,1816.0,5.50657]
[1743423753308,0.8026,1816.3,1816.1,5.50613]
[1743423753603,0.8026,1816.3,1816.1,11.01229]
[1743423753901,0.8026,1816.3,1816.1,5.50613]
[1743423754107,0.7784,1816.6,1816.1,6.11180484]
[1743423754275,3.1540131,1816.5,1816.2,5.50596]
[1743423754483,3.9324131,1816.4,1816.3,5.436]
[1743423754805,9.4378031,1816.4,1816.3,5.436]
[1743423755103,9.4378031,1816.4,1816.0,21.20278]
[1743423755404,3.1540131,1816.3,1816.1,5.436]
[1743423756401,0.7784,1816.1,1816.0,10.19]
[1743423756708,3.9324131,1816.1,1815.9,5.5069]
[1743423757007,3.9544131,1816.3,1816.1,5.5063]
[1743423757213,0.8004,1816.3,1816.2,5.506]
[1743423757509,3.0,1816.4,1816.2,10.941]
[1743423758004,3.0,1816.4,1816.2,5.435]
[1743423758380,11.6594331,1816.4,1816.2,5.435]
[1743423758576,3.1540131,1816.3,1816.2,5.435]
[1743423758892,3.9544131,1816.3,1816.2,5.435]
[1743423759098,14.9659831,1816.3,1815.9,5.50689]
[1743423759295,8.6600131,1816.2,1816.1,5.435]
[1743423759483,3.1540131,1816.2,1816.1,5.435]
[1743423759983,0.8004,1816.3,1816.2,5.506]
[1743423760581,0.8004,1816.3,1816.1,16.44736]
[1743423760905,0.8004,1816.3,1816.2,5.506]
[1743423761106,3.1540131,1816.4,1816.2,11.012]
[1743423761310,3.1540131,1816.4,1816.3,5.50569]
[1743423762008,3.7741,1816.5,1816.4,5.50539]
[1743423762211,0.7789,1816.7,1816.6,5.50478]
[1743423762509,3.9329131,1816.7,1816.5,5.50495]
[1743423762916,3.9329131,1816.7,1816.5,11.00989]
[1743423763411,3.9329131,1816.7,1816.6,5.50478]
[1743423763594,0.7789,1816.7,1816.6,5.50478]
[1743423763787,3.9329131,1816.7,1816.6,5.50478]
[1743423764114,3.9329131,1816.7,1816.5,10.93994]
[1743423764318,3.9329131,1816.7,1816.5,16.44492]
[1743423764823,4.0826131,1816.9,1816.7,5.50437]
[1743423765316,4.0826131,1816.9,1816.7,5.50436]